bitfinex-derivatives/quotes_ETHF0:USTF0_20250929
["timestamp","ask_amount","ask_price","bid_price","bid_amount"]
[1759154604670,1.5359,4170.5,4168.2,0.4316]
[1759154604874,1.5359,4170.5,4167.9,0.02614871]
[1759154605074,1.5359,4170.7,4167.9,0.02614871]
[1759154605280,1.5359,4170.5,4168.6,0.43156]
[1759154605475,0.306,4170.4,4168.7,0.43154]
[1759154605776,1.8419,4170.3,4168.8,0.43153]
[1759154605973,1.5359,4170.3,4168.7,0.43155]
[1759154606176,0.6224,4170.0,4168.9,0.016]
[1759154606481,1.5359,4169.9,4168.9,0.016]
[1759154607482,1.5359,4169.9,4168.9,0.44753]
[1759154609376,1.5359,4169.9,4169.0,0.43151]
[1759154610287,1.5359,4169.9,4168.9,0.016]
[1759154610486,1.5359,4169.9,4169.1,0.43151]
[1759154610686,1.5359,4169.9,4168.9,0.016]
[1759154610980,1.5359,4169.9,4169.0,0.43152]
[1759154611183,1.5359,4169.9,4169.2,0.4315]
[1759154611383,1.5359,4169.9,4168.9,0.016]
[1759154611590,1.5359,4169.9,4169.3,0.43149]
[1759154613475,1.5359,4169.9,4168.9,0.016]
[1759154613476,0.6224,4170.6,4169.5,1.07868]
[1759154613781,0.00302425,4170.8,4170.5,0.43136]
[1759154614181,0.00302425,4170.8,4170.6,0.43135]
[1759154614580,0.00302425,4170.8,4170.3,0.43139]
[1759154614781,0.00302425,4170.8,4169.0,1.07881]
[1759154614782,0.24502425,4170.8,4169.0,1.07881]
[1759154614984,0.24502425,4170.8,4169.5,0.43147]
[1759154615288,0.6224,4170.0,4169.9,0.43143]
[1759154615485,0.6224,4170.0,4168.9,1.09482]
[1759154615486,0.00302425,4170.8,4169.0,1.07879]
[1759154615693,1.5359,4170.7,4169.5,1.07867]
[1759154616085,1.5359,4170.7,4168.9,0.016]
[1759154616386,0.6224,4170.5,4170.3,0.43138]
[1759154616691,1.5359,4170.7,4170.5,0.43136]
[1759154616884,0.00302425,4170.8,4170.5,0.43136]
[1759154617088,1.5359,4170.7,4170.3,0.43139]
[1759154617288,1.53892425,4170.8,4169.3,1.07872]
[1759154617490,1.5359,4170.7,4170.6,0.43135]
[1759154617691,0.00302425,4170.8,4170.6,0.43135]
[1759154618085,1.53892425,4170.8,4169.1,1.07877]
[1759154618293,1.53892425,4170.8,4170.1,0.43141]
[1759154618587,1.5359,4170.4,4170.2,0.43139]
[1759154619293,1.5359,4170.4,4170.3,0.43138]
[1759154621491,1.5359,4170.4,4169.0,2.45963]
[1759154621691,1.5359,4170.4,4170.2,0.4314]
[1759154621890,1.5359,4170.4,4170.3,0.43138]
[1759154623289,1.53892425,4170.8,4170.7,0.43135]
[1759154623685,1.53892425,4170.8,4170.6,0.43136]
[1759154623686,1.5359,4170.7,4170.6,0.43136]
[1759154624285,6.5359,4170.7,4169.7,1.07863]
[1759154624487,1.5359,4169.9,4169.8,0.43144]
[1759154624891,2.1583,4170.5,4170.4,0.43138]
[1759154625391,2.1583,4170.5,4169.9,1.07858]
[1759154625595,2.1583,4170.5,4168.9,0.016]
[1759154625794,2.1583,4170.5,4170.1,0.4314]
[1759154626389,0.6224,4170.0,4169.1,1.07878]
[1759154626695,1.5359,4169.9,4169.8,0.43144]
[1759154633193,1.5359,4169.9,4169.0,0.298]
[1759154633397,2.1583,4169.5,4169.4,0.43148]
[1759154633594,2.66401332,4169.5,4169.0,0.298]
[1759154633896,2.04161332,4169.4,4169.3,0.43149]
[1759154634797,2.04161332,4169.4,4169.0,0.298]
[1759154634992,1.4859,4169.2,4169.0,0.298]
[1759154635195,1.4859,4169.2,4169.1,0.43151]
[1759154635791,0.6224,4169.5,4169.4,0.43148]
[1759154636190,0.6224,4170.0,4169.9,0.43143]
[1759154636389,2.1083,4170.0,4169.9,0.43143]
[1759154636997,1.4859,4170.5,4170.4,0.43138]
[1759154637297,1.48892425,4170.8,4170.7,0.51666047]
[1759154637496,1.99225426,4170.8,4170.7,0.51666047]
[1759154638202,0.00302425,4170.8,4170.7,0.51666047]
[1759154639092,0.00302425,4170.8,4170.7,5.51666047]
[1759154640598,4.25e-06,4170.8,4170.7,5.51666047]
[1759154640801,0.5962,4172.0,4171.9,0.43122]
[1759154641002,1.09913709,4172.0,4171.9,0.43122]
[1759154641202,0.5962,4172.0,4171.7,0.292]
[1759154641403,1.4859,4171.9,4171.8,0.43123]
[1759154641701,1.48835511,4171.9,4171.8,0.43319517]
[1759154642597,0.00245511,4171.9,4171.8,0.43319517]
[1759154643008,5.11e-06,4171.9,4171.8,5.43319517]
[1759154648204,1.4859,4172.9,4172.8,0.43113]
[1759154648406,1.4859,4172.9,4172.8,0.72213]
[1759154649212,0.00190496,4172.9,4172.8,0.72213]
[1759154649510,1.4859,4173.3,4173.2,0.43108]
[1759154649704,1.4859,4173.3,4173.2,0.72208]
[1759154649905,0.5962,4173.5,4173.4,0.43106]
[1759154650106,2.0821,4173.5,4173.4,0.43106]
[1759154650508,2.08399132,4173.5,4173.4,0.43106]
[1759154651013,1.99561562,4174.0,4173.9,0.43101]
[1759154651214,1.99561562,4174.0,4173.9,0.72201]
[1759154651812,0.5962,4175.0,4174.4,0.43096]
[1759154652013,0.59831317,4174.5,4174.4,0.72196]
[1759154652712,0.59831317,4174.5,4174.4,0.291]
[1759154653315,5.59831317,4174.5,4174.4,0.291]
[1759154653808,1.4859,4173.9,4172.8,1.07779]
[1759154654008,2.0821,4173.5,4173.4,0.43106]
[1759154654203,0.5962,4174.0,4173.9,0.43101]
[1759154654410,2.0821,4174.0,4173.9,0.43101]
[1759154654723,1.4859,4174.0,4173.9,0.72201]
[1759154655517,2.08421317,4174.5,4174.4,0.43095]
[1759154655713,2.08421317,4174.5,4174.4,0.72195]
[1759154656017,2.08421317,4174.5,4174.4,0.291]
[1759154656727,0.5962,4175.0,4174.4,0.291]
[1759154656728,2.04098033,4175.0,4174.9,0.4309]
[1759154657218,2.04098033,4175.0,4174.9,0.291]
[1759154657815,2.04377878,4175.0,4174.9,0.29409167]
[1759154658718,7.04377878,4175.0,4173.8,0.291]
[1759154659018,2.1122,4174.0,4173.9,0.43101]
[1759154659823,2.1122,4174.0,4173.9,0.43398635]
[1759154662020,2.1122,4174.5,4174.4,0.43095]
[1759154663235,2.1122,4174.5,4174.4,0.72195]
[1759154664125,1.485,4174.5,4174.4,0.72195]
[1759154664324,2.03747878,4175.0,4174.9,0.4309]
[1759154665534,2.03747878,4175.0,4174.4,0.291]
[1759154665726,2.03747878,4175.0,4174.7,0.43092]
[1759154666232,2.03747878,4175.0,4174.6,0.0239]
[1759154666830,2.03747878,4175.0,4174.8,0.43091]
[1759154667434,2.03747878,4175.0,4174.6,0.0239]
[1759154667435,2.03747878,4175.0,4174.9,0.4309]
[1759154668133,2.03747878,4175.0,4174.8,0.4309]
[1759154668331,0.00279845,4175.0,4174.8,0.4309]
[1759154668535,8.45e-06,4175.0,4174.9,0.892]
[1759154668828,8.45e-06,4175.0,4174.9,5.892]
[1759154670327,8.45e-06,4175.0,4174.9,0.892]
[1759154670832,8.45e-06,4175.0,4174.9,5.892]
[1759154671032,8.45e-06,4175.0,4174.9,6.183]
[1759154671230,1.4796,4176.4,4176.3,0.43076]
[1759154671536,1.4796,4176.4,4176.3,0.72176]
[1759154672131,1.48183066,4176.4,4176.3,0.72176]
[1759154672531,0.00223066,4176.4,4176.3,1.61376]
[1759154673238,0.00223066,4176.4,4176.3,6.61376]
[1759154675038,1.43863942,4177.0,4176.9,0.4307]
[1759154675336,2.04473942,4177.0,4176.9,0.7217]
[1759154676026,2.04773389,4177.0,4176.9,0.72471229]
[1759154678234,2.04773389,4177.0,4176.9,0.29301229]
[1759154678442,7.04773389,4177.0,4176.9,0.29301229]
[1759154678639,2.04773389,4177.0,4176.9,0.29301229]
[1759154680337,1.44163389,4177.0,4176.9,0.29301229]
[1759154680638,2.04773389,4177.0,4176.9,0.29301229]
[1759154681042,1.44163389,4177.0,4176.9,0.29301229]
[1759154681234,2.04773389,4177.0,4176.9,0.29301229]
[1759154683833,1.44163389,4177.0,4176.9,0.29301229]
[1759154684033,2.04773389,4177.0,4176.9,0.29301229]
[1759154686733,7.04773389,4177.0,4176.9,0.00301229]
[1759154687736,7.04773389,4177.0,4176.9,0.43371229]
[1759154688941,0.6061,4176.5,4176.1,1.16317621]
[1759154689140,1.4796,4176.4,4176.2,0.29]
[1759154689345,1.4796,4176.4,4176.3,0.43076]
[1759154689848,1.4796,4176.4,4176.3,0.4329814]
[1759154690840,0.60909447,4177.0,4176.9,0.4307]
[1759154691049,0.60909447,4177.0,4176.9,0.7207]
[1759154692445,0.00299447,4177.0,4176.9,2.1787]
[1759154692643,4.47e-06,4177.0,4176.9,2.1787]
[1759154692843,1.47960447,4177.0,4176.9,2.1787]
[1759154694248,4.47e-06,4177.0,4176.9,0.7207]
[1759154694452,4.47e-06,4177.0,4176.9,2.1547]
[1759154694646,0.61120447,4177.0,4176.9,0.7207]
[1759154694844,4.47e-06,4177.0,4176.9,0.7207]
[1759154695052,0.61120447,4177.0,4176.9,0.7207]
[1759154695252,2.11000447,4177.0,4176.9,0.7207]
[1759154699452,1.49880447,4177.0,4176.9,2.1547]
[1759154700056,4.47e-06,4177.0,4176.9,2.1547]
[1759154700255,4.47e-06,4177.0,4176.9,0.7207]
[1759154701054,0.61120447,4177.0,4176.9,0.7207]
[1759154701256,2.11000447,4177.0,4176.9,0.7207]
[1759154701457,2.11000447,4177.0,4176.9,0.4307]
[1759154701662,2.11000447,4177.0,4176.9,0.7197]
[1759154703258,2.1049,4177.5,4177.4,0.43064]
[1759154703452,1.4988,4177.8,4177.7,0.43061]
[1759154703959,1.4988,4177.8,4177.7,1.86461]
[1759154704359,1.50165133,4177.8,4177.7,1.86461]
[1759154704557,1.50165133,4177.8,4177.7,0.43061]
[1759154707649,1.50165133,4177.8,4177.7,0.71961]
[1759154708160,1.50165133,4177.8,4177.7,0.43061]
[1759154708563,1.50165133,4177.8,4177.7,0.71961]
[1759154708963,1.50165133,4177.8,4177.7,0.289]
[1759154710162,6.50165133,4177.8,4177.7,0.289]
[1759154710563,6.50165133,4177.8,4177.5,0.43063]
[1759154710865,0.6112,4177.5,4177.4,0.71964]
[1759154711165,2.11,4177.5,4177.4,0.71964]
[1759154711358,7.11,4177.5,4177.4,0.71964]
[1759154711660,7.11,4177.5,4177.4,0.289]
[1759154711853,1.4988,4176.9,4176.8,0.43071]
[1759154712058,1.4988,4176.4,4176.3,0.4329814]
[1759154712258,1.4988,4176.4,4176.3,0.7219814]
[1759154712656,1.4988,4176.4,4176.3,2.1559814]
[1759154713062,2.11,4177.0,4176.9,0.4307]
[1759154713257,0.6112,4176.5,4176.4,0.43075]
[1759154713463,2.0611,4176.5,4176.4,0.43075]
[1759154716767,2.0611,4176.5,4176.3,0.0022214]
[1759154716965,2.0611,4176.5,4176.4,0.43075]
[1759154718160,1.4499,4177.0,4176.9,0.4307]
[1759154718376,2.0611,4177.5,4177.4,0.43064]
[1759154719068,2.0611,4177.5,4177.4,0.71864]
[1759154719567,1.4499,4177.5,4177.4,0.71864]
[1759154719966,1.4499,4177.5,4177.4,2.15134]
[1759154720462,1.45275133,4177.8,4177.7,0.43061]
[1759154722467,1.45275133,4177.8,4177.7,1.86331]
[1759154722868,1.45275133,4177.8,4177.7,0.43061]
[1759154727867,1.45275133,4177.8,4177.7,0.71861]
[1759154728064,1.45275133,4177.8,4176.8,1.4342]
[1759154728065,2.395,4176.4,4172.3,1.4342]
[1759154728270,0.5729,4175.0,4172.3,1.4342]
[1759154728577,41.36203233,4174.9,4172.3,1.4342]
[1759154728776,0.50203233,4174.8,4172.3,1.4342]
[1759154728969,0.79203233,4174.7,4172.3,1.43593699]
[1759154729174,0.79203233,4174.6,4172.7,1.4342]
[1759154729375,0.50203233,4174.5,4172.7,1.4342]
[1759154729678,0.50203233,4174.4,4172.7,1.4342]
[1759154729974,0.50203233,4174.3,4172.7,1.4342]
[1759154730275,0.50203233,4174.2,4172.7,1.37190455]
[1759154730470,0.50203233,4174.1,4172.5,0.5547]
[1759154730667,0.79203233,4174.0,4172.5,0.5547]
[1759154730872,0.50203233,4173.9,4172.5,0.5547]
[1759154731174,0.50203233,4173.9,4172.6,0.022]
[1759154733781,0.79103233,4173.8,4172.6,0.022]
[1759154734073,0.50203233,4173.7,4172.6,0.022]
[1759154735182,0.79003233,4173.6,4172.6,0.022]
[1759154735372,0.79003233,4173.5,4172.6,0.022]
[1759154735577,0.50203233,4173.4,4172.6,0.022]
[1759154736476,0.50203233,4173.3,4173.0,0.5547]
[1759154736671,0.50203233,4173.3,4173.0,9.33192215]
[1759154736872,0.288,4174.0,4173.1,1.4342]
[1759154737079,0.64167801,4173.9,4173.1,1.4342]
[1759154737279,0.64167801,4173.8,4173.1,1.4342]
[1759154737479,0.288,4174.0,4173.1,1.4342]
[1759154737480,0.64167801,4173.7,4173.1,1.4342]
[1759154737673,0.00248216,4174.8,4173.5,1.9889]
[1759154737674,0.64167801,4173.6,4173.5,1.9889]
[1759154737978,0.30652946,4174.5,4173.5,10.76612215]
[1759154738277,0.64133501,4174.4,4173.5,10.76612215]
[1759154738480,0.64133501,4174.3,4173.5,10.76612215]
[1759154738680,0.64133501,4174.2,4173.5,10.76612215]
[1759154738984,0.64133501,4174.1,4173.5,10.76612215]
[1759154739182,0.64133501,4174.0,4173.6,1.4318]
[1759154739484,0.64133501,4173.9,4173.5,9.33192215]
[1759154739674,0.64133501,4173.8,4173.5,9.33192215]
[1759154739875,0.64133501,4173.7,4173.6,8.77722215]
[1759154740077,0.64133501,4174.3,4173.6,8.77722215]
[1759154740373,0.64133501,4174.2,4173.5,0.5547]
[1759154740573,0.64133501,4174.1,4173.6,8.77722215]
[1759154740774,0.64133501,4174.0,4173.6,8.77722215]
[1759154741080,0.64133501,4173.9,4173.5,0.5547]
[1759154741283,0.64133501,4173.8,4173.7,1.4342]
[1759154741776,0.64133501,4174.3,4173.7,1.4342]
[1759154741984,0.64133501,4174.2,4173.6,1.4342]
[1759154742176,0.64133501,4174.1,4174.0,0.5547]
[1759154742378,0.64133501,4174.1,4174.0,1.9889]
[1759154743776,0.288,4174.5,4174.0,1.9889]
[1759154743972,0.64133501,4174.4,4174.0,0.5547]
[1759154744182,0.64133501,4174.3,4174.0,1.9889]
[1759154744485,0.64133501,4174.2,4174.0,1.9889]
[1759154744783,0.64133501,4174.1,4174.0,1.9889]
[1759154747281,0.00248216,4174.8,4174.6,1.4342]
[1759154747584,0.66045559,4174.7,4174.6,1.4342]
[1759154747784,0.66045559,4174.7,4174.1,1.4342]
[1759154747981,0.66045559,4174.6,4174.0,0.5547]
[1759154748185,0.66045559,4174.5,4174.0,0.5547]
[1759154748483,0.66045559,4174.4,4174.0,0.5547]
[1759154748789,0.66045559,4174.3,4174.1,1.4342]
[1759154749080,0.00248216,4174.8,4174.4,0.43095]
[1759154749274,0.00248216,4174.8,4174.1,1.4342]
[1759154749275,0.651123,4174.7,4174.6,1.86513]
[1759154749872,0.00248216,4174.8,4174.7,1.4342]
[1759154750080,0.00248216,4174.8,4174.7,10.21142215]
[1759154756283,1.69162849,4175.8,4175.5,0.6119]
[1759154756490,1.69162849,4176.0,4175.6,1.4958]
[1759154756883,0.29588083,4176.3,4176.0,0.6119]
[1759154757083,0.288,4176.5,4176.1,1.4958]
[1759154757292,0.28979337,4176.5,4176.1,1.49890879]
[1759154757491,0.28979337,4176.5,4176.2,1.4958]
[1759154757685,0.28979337,4176.5,4176.1,0.00310879]
[1759154757880,0.00179337,4176.5,4176.2,1.4958]
[1759154758085,0.28979337,4176.5,4176.1,0.00310879]
[1759154758285,2.22498974,4176.5,4176.1,0.00310879]
[1759154758486,0.28979337,4176.5,4176.2,1.4958]
[1759154758685,0.28979337,4176.5,4176.1,0.00310879]
[1759154758991,0.28979337,4176.5,4176.2,1.4958]
[1759154759289,0.28979337,4176.5,4176.1,0.00310879]
[1759154759493,0.00179337,4176.5,4176.1,0.00310879]
[1759154759888,0.288,4176.4,4176.1,0.00310879]
[1759154760091,0.288,4176.4,4176.2,1.4958]
[1759154760286,1.93741895,4176.5,4176.2,1.4958]
[1759154761183,0.5311803,4176.4,4176.2,1.4958]
[1759154761387,0.34135392,4176.3,4176.2,1.92655]
[1759154761688,0.00179337,4176.5,4176.4,1.92653]
[1759154761895,1.89090546,4177.5,4177.1,1.4958]
[1759154762092,0.288,4177.6,4177.5,2.1077]
[1759154762596,0.32511646,4177.9,4177.5,2.1077]
[1759154762895,0.288,4177.8,4177.5,0.6119]
[1759154763099,0.288,4177.8,4177.6,1.4958]
[1759154763294,6.6083,4177.8,4177.0,0.6119]
[1759154763594,0.288,4177.7,4177.1,8.77722215]
[1759154763795,0.288,4177.7,4177.0,0.6119]
[1759154763992,0.288,4177.7,4177.1,8.77722215]
[1759154764388,2.19623033,4177.7,4177.1,8.77722215]
[1759154764598,0.288,4177.7,4177.1,8.77722215]
[1759154765594,0.02483855,4177.9,4177.6,1.4958]
[1759154765998,0.02483855,4177.9,4177.7,8.77722215]
[1759154766293,0.02483855,4177.9,4177.5,0.6119]
[1759154766294,0.02483855,4177.9,4177.8,10.27302215]
[1759154766799,0.02483855,4177.9,4177.8,1.4958]
[1759154768392,0.02483855,4177.9,4176.9,1.07669]
[1759154768393,2.395,4175.4,4173.5,2.0674749]
[1759154768587,1.4553,4173.9,4172.0,0.6119]
[1759154768788,1.4553,4173.8,4172.0,0.6119]
[1759154769103,1.4553,4174.3,4173.4,8.80112215]
[1759154769399,1.45734843,4174.3,4173.4,8.80310133]
[1759154769593,1.45734843,4174.3,4173.4,0.00197918]
[1759154769796,1.45734843,4174.3,4173.6,8.80112215]
[1759154769998,1.4553,4174.2,4173.6,8.80112215]
[1759154770197,0.00204843,4174.3,4173.6,8.80112215]
[1759154770395,1.4553,4174.2,4173.6,8.80112215]
[1759154770596,0.00204843,4174.3,4173.7,1.4958]
[1759154770900,0.00204843,4174.3,4174.0,10.29692215]
[1759154771095,1.45734843,4174.3,4174.0,10.29692215]
[1759154771398,1.4553,4174.2,4173.4,0.00197918]
[1759154771704,0.00204843,4174.3,4173.7,8.80112215]
[1759154771892,1.4553,4174.2,4173.7,8.80112215]
[1759154772198,0.00204843,4174.3,4173.7,8.80112215]
[1759154772396,0.00204843,4174.3,4173.8,8.80112215]
[1759154772698,1.4553,4174.2,4173.9,1.4958]
[1759154774305,0.00204843,4174.3,4173.6,1.6363]
[1759154774802,0.00204843,4174.3,4174.2,10.43742215]
[1759154775097,0.00204843,4174.3,4174.2,8.80112215]
[1759154775500,0.00204843,4174.3,4174.2,10.43742215]
[1759154776297,1.3441,4171.4,4168.1,1.6363]
[1759154776501,0.50294051,4171.3,4169.0,2.2678]
[1759154776695,0.50294051,4171.2,4169.1,1.9533]
[1759154776894,1.89620965,4171.3,4169.1,1.9533]
[1759154777196,0.00198179,4171.3,4169.1,1.95587009]
[1759154777402,0.00198179,4171.3,4171.0,0.6315]
[1759154777702,0.00198179,4171.3,4171.1,1.6363]
[1759154777993,0.00198179,4171.3,4170.0,0.6315]
[1759154779305,0.00198179,4171.3,4171.0,0.6315]
[1759154779800,0.00198179,4171.3,4171.1,1.6363]
[1759154780391,0.00198179,4171.3,4170.5,0.6315]
[1759154780392,0.00198179,4171.3,4170.6,1.6363]
[1759154782204,0.00198179,4171.3,4171.0,0.6315]
[1759154782597,0.00198179,4171.3,4171.1,1.6363]
[1759154782797,0.00198179,4171.3,4171.0,0.6315]
[1759154783103,0.00198179,4171.3,4171.1,1.6363]
[1759154783705,0.00198179,4171.3,4171.0,0.6315]
[1759154783905,0.00198179,4171.3,4171.1,1.6363]
[1759154784104,0.00198179,4171.3,4171.0,0.6307]
[1759154784503,0.00198179,4171.3,4171.1,1.5435]
[1759154784704,0.00198179,4171.3,4171.0,0.6307]
[1759154785200,0.00198179,4171.3,4171.1,1.5435]
[1759154787999,0.00198179,4171.3,4171.2,1.5435]
[1759154788501,1.4873,4172.9,4171.6,1.5435]
[1759154788905,0.312,4172.8,4171.6,1.5435]
[1759154789108,1.94476801,4172.8,4171.6,1.5435]
[1759154789309,1.4873,4172.9,4171.6,1.5435]
[1759154789511,1.48989515,4172.9,4171.6,1.97473]
[1759154789709,0.312,4172.8,4171.7,1.5435]
[1759154790212,1.48989515,4172.9,4171.7,1.5435]
[1759154790607,0.311,4172.8,4171.7,1.5435]
[1759154790908,1.4893,4172.7,4171.7,1.5435]
[1759154792108,0.00259515,4172.9,4171.7,1.5435]
[1759154792303,0.311,4172.8,4171.7,1.5435]
[1759154792505,1.88715474,4172.9,4172.1,1.5435]
[1759154792506,0.00259515,4172.9,4172.1,1.5435]
[1759154792710,6.373,4171.2,4168.5,0.28446942]
[1759154793004,6.373,4171.2,4168.0,0.6102]
[1759154793005,1.5852,4170.3,4168.0,0.6102]
[1759154793211,1.5852,4169.9,4168.0,0.6102]
[1759154793400,0.6129,4170.0,4168.0,0.6102]
[1759154793401,1.5852,4169.7,4168.0,0.6102]
[1759154793601,1.58734355,4169.7,4168.0,0.61195302]
[1759154793812,1.58734355,4169.7,4168.1,0.43159]
[1759154794509,1.58734355,4169.7,4168.2,0.43157]
[1759154794705,1.58734355,4169.7,4168.4,0.43156]
[1759154794910,1.58734355,4169.7,4168.6,1.5435]
[1759154795317,0.00214355,4169.7,4168.6,0.43153]
[1759154795513,0.00214355,4169.7,4168.7,1.97502]
[1759154795714,0.00214355,4169.7,4168.8,1.97501]
[1759154795910,0.00214355,4169.7,4169.0,0.6102]
[1759154796108,0.00214355,4169.7,4169.1,1.5435]
[1759154797513,1.5852,4168.9,4168.0,0.00175302]
[1759154797814,1.5852,4168.7,4168.0,0.00175302]
[1759154798115,0.50190159,4168.6,4168.0,0.00175302]
[1759154798418,1.5852,4168.7,4168.0,0.00175302]
[1759154798608,0.50191299,4168.6,4168.0,0.00175302]
[1759154798809,1.5852,4168.7,4168.0,0.00175302]
[1759154799112,0.6129,4168.5,4168.0,0.00175302]
[1759154799312,1.5852,4168.4,4168.0,0.00175302]
[1759154799919,0.9379,4168.5,4168.0,0.00175302]
[1759154800115,1.5852,4168.4,4168.0,0.00175302]
[1759154800314,0.9379,4168.5,4168.0,0.00175302]
[1759154800617,0.6129,4169.5,4168.7,0.43152]
[1759154800807,1.58734355,4169.7,4168.8,1.5435]
[1759154801111,1.58734355,4169.7,4169.0,1.5435]
[1759154801316,1.58734355,4169.7,4169.1,0.43148]
[1759154801504,1.58734355,4169.7,4169.3,0.43146]
[1759154801709,0.00214355,4169.7,4169.1,0.43148]
[1759154801907,0.00214355,4169.7,4169.2,0.43147]
[1759154802310,0.00214355,4169.7,4169.4,1.5435]
[1759154802511,0.00214355,4169.7,4169.3,0.43146]
[1759154802512,0.00214355,4169.7,4169.6,1.5435]
[1759154803418,0.00214355,4169.7,4168.8,1.5435]
[1759154803921,0.6129,4169.0,4165.7,1.65710575]
[1759154804123,1.5852,4165.4,4165.2,1.65710575]
[1759154804313,0.6129,4165.5,4163.3,0.43209]
[1759154804314,1.5852,4165.2,4163.3,0.43209]
[1759154804513,1.5852,4165.2,4163.1,0.4321]
[1759154804819,2.1981,4165.0,4163.0,0.43212]
[1759154805018,2.20061733,4165.0,4163.0,0.43511023]
[1759154805421,2.20061733,4165.0,4163.0,0.00300023]
[1759154806519,0.49614422,4164.9,4163.0,0.00300023]
[1759154806823,1.5852,4164.8,4163.0,0.43512023]
[1759154807422,1.5852,4164.8,4163.0,0.00300023]
[1759154807826,1.5852,4164.8,4163.0,0.43511023]
[1759154808025,1.5852,4164.8,4163.2,0.4321]
[1759154808927,1.5852,4164.8,4163.0,0.00300023]
[1759154809226,1.5852,4164.8,4163.3,0.43208]
[1759154809823,1.5852,4164.8,4163.4,0.43207]
[1759154810024,1.5852,4164.8,4163.5,0.43207]
[1759154810329,1.5852,4164.8,4163.3,0.43209]
[1759154810518,1.5852,4164.8,4163.4,0.43207]
[1759154810720,1.5852,4164.8,4163.6,0.43206]
[1759154810921,1.5852,4164.8,4163.3,0.43209]
[1759154811620,0.61541733,4165.0,4164.3,0.43198]
[1759154811817,0.61541733,4165.0,4163.8,1.0801]
[1759154812126,1.5852,4164.9,4164.8,0.43193]
[1759154812722,1.5852,4164.9,4164.8,5.43193]
[1759154813026,2.20061733,4165.0,4164.8,5.0]
[1759154813232,1.5852,4164.9,4164.8,5.0]
[1759154813526,1.5852,4164.9,4164.7,0.43193]
[1759154813920,0.61541733,4165.0,4164.9,0.43192]
[1759154814218,0.61541733,4165.0,4164.7,5.0]
[1759154814422,1.5505,4164.4,4164.1,0.0081]
[1759154815722,0.6242,4164.5,4164.1,0.0081]
[1759154815933,1.5505,4164.4,4164.1,0.0081]
[1759154816329,1.5505,4164.4,4163.5,0.43206]
[1759154816530,0.6242,4164.0,4163.6,0.43205]
[1759154817224,1.5505,4163.9,4163.3,0.43208]
[1759154817527,1.5505,4163.4,4163.3,0.43208]
[1759154822132,1.5505,4163.4,4163.3,5.43208]
[1759154822432,0.6242,4164.0,4163.8,0.43204]
[1759154822433,1.5505,4163.9,4163.8,0.43204]
[1759154824234,1.5505,4164.4,4163.9,1.08008]
[1759154824532,0.6242,4164.5,4164.4,0.43198]
[1759154824835,0.6242,4165.5,4164.9,0.43193]
[1759154825132,2.16591733,4165.0,4164.9,0.43193]
[1759154827340,7.16591733,4165.0,4162.9,0.024022]
[1759154827528,1.5505,4163.3,4163.2,0.4321]
[1759154828033,1.5505,4163.3,4163.2,0.7651]
[1759154828926,2.1747,4163.5,4163.4,0.43208]
[1759154829828,2.1747,4163.5,4163.4,5.43208]
[1759154830024,1.5505,4164.9,4164.8,0.43193]
[1759154830231,0.6242,4165.5,4165.4,0.43187]
[1759154831230,0.6242,4166.0,4165.9,0.43182]
[1759154831438,0.62686619,4166.0,4165.9,0.43182]
[1759154832333,3.9455,4165.9,4164.1,0.432]
[1759154832538,3.9455,4165.9,4163.6,1.08016]
[1759154832539,1.5505,4164.4,4163.6,1.08016]
[1759154832740,1.5505,4164.4,4164.3,0.43199]
[1759154833736,2.05049968,4164.4,4164.3,0.43199]
[1759154834044,1.5505,4164.4,4164.3,0.43199]
[1759154834340,1.5505,4164.4,4163.9,1.08008]
[1759154834341,0.50145951,4164.4,4163.9,1.08008]
[1759154834537,0.6242,4164.5,4164.4,0.43198]
[1759154834845,1.12559613,4164.5,4164.4,0.43198]
[1759154835144,2.78709613,4164.5,4164.4,0.43198]
[1759154836741,2.2857,4164.5,4164.4,0.43198]
[1759154838541,0.6242,4165.0,4164.9,0.43193]
[1759154838739,2.78705156,4165.0,4164.9,0.43193]
[1759154838936,2.16285156,4165.0,4164.9,0.43193]
[1759154839141,2.2857,4165.5,4165.4,0.43187]
[1759154839741,2.28836619,4166.0,4165.9,0.43182]
[1759154840442,2.28836619,4166.0,4165.0,1.69148]
[1759154840443,7.28836619,4166.0,4163.0,0.00300023]
[1759154840651,2.2656,4164.0,4163.9,0.43203]
[1759154847243,1.6447,4164.9,4164.4,1.07993]
[1759154847450,1.6447,4164.9,4164.5,1.07993]
[1759154847642,0.6041,4165.0,4164.8,0.43194]
[1759154847845,1.6447,4164.9,4164.8,0.43194]
[1759154851952,0.6156,4163.5,4163.0,0.00300023]
[1759154852147,1.6447,4163.4,4163.1,0.43211]
[1759154852453,1.6447,4163.4,4163.2,0.4321]
[1759154852646,1.6447,4163.4,4163.0,0.33000023]
[1759154852849,1.6447,4163.4,4163.0,0.00300023]
[1759154853648,1.6447,4163.4,4163.0,0.43512023]
[1759154854347,0.6156,4163.5,4163.0,0.43512023]
[1759154854348,0.6156,4163.5,4163.0,0.00300023]
[1759154854554,2.2603,4163.5,4163.4,0.43208]
[1759154857159,2.2603,4163.5,4163.3,0.43208]
[1759154858959,1.6447,4163.4,4163.3,0.43208]
[1759154859655,1.6447,4163.4,4163.0,0.00300023]
[1759154859858,1.6447,4163.4,4163.1,0.43211]
[1759154860155,1.6447,4163.4,4163.2,0.4321]
[1759154860757,1.6447,4163.4,4163.0,0.43512023]
[1759154861054,1.6447,4163.4,4163.0,0.43513023]
[1759154861447,1.6447,4163.4,4163.1,0.43212]
[1759154861652,1.6447,4163.4,4163.0,0.43513023]
[1759154861850,0.6156,4163.0,4161.3,1.65710575]
[1759154862158,1.6447,4161.9,4161.0,1.65710575]
[1759154862359,1.6447,4161.9,4160.9,0.322]
[1759154862554,1.6447,4161.9,4161.1,1.08082]
[1759154862757,1.6447,4161.9,4160.9,0.322]
[1759154862758,0.6156,4161.5,4161.3,0.4323]